[Event "*** Titled Tuesday Blitz"]
[Site "Chess.com"]
[Date "2018.05.01"]
[Round "4"]
[White "popov_m"]
[Black "Mbneu"]
[Result "1-0"]
[WhiteElo "2388"]
[BlackElo "2275"]
[TimeControl "180+2"]
[EndTime "13:47:53 PDT"]
[Termination "popov_m won by resignation"]

1. d4 {[%clk 0:03:01]} 1... d5 {[%clk 0:02:55]} 2. Bf4 {[%clk 0:02:57]} 2... e6
{[%clk 0:02:55.5]} 3. e3 {[%clk 0:02:57.9]} 3... Bd6 {[%clk 0:02:56.9]} 4. Bg3
{[%clk 0:02:58.8]} 4... Ne7 {[%clk 0:02:58.4]} 5. Nd2 {[%clk 0:02:59.9]} 5...
Nf5 {[%clk 0:02:57.5]} 6. Bd3 {[%clk 0:03:01.3]} 6... Nd7 {[%clk 0:02:58.4]} 7.
Ngf3 {[%clk 0:02:55.4]} 7... Nf6 {[%clk 0:02:58.6]} 8. c3 {[%clk 0:02:54]} 8...
a6 {[%clk 0:02:58.1]} 9. Qc2 {[%clk 0:02:54.6]} 9... c5 {[%clk 0:02:41.6]} 10.
dxc5 {[%clk 0:02:36.7]} 10... Bxc5 {[%clk 0:02:40.8]} 11. e4 {[%clk 0:02:18.9]}
11... dxe4 {[%clk 0:02:27.4]} 12. Nxe4 {[%clk 0:02:20.8]} 12... Nxe4 {[%clk
0:02:25.6]} 13. Bxe4 {[%clk 0:02:22.7]} 13... O-O {[%clk 0:02:25.3]} 14. Bf4
{[%clk 0:02:17.6]} 14... h6 {[%clk 0:02:23.5]} 15. Bd3 {[%clk 0:01:50.9]} 15...
Nh4 {[%clk 0:02:14.3]} 16. O-O-O {[%clk 0:01:45.9]} 16... Nxf3 {[%clk
0:02:00.1]} 17. Bh7+ {[%clk 0:01:39.1]} 17... Kh8 {[%clk 0:01:59.1]} 18. Rxd8
{[%clk 0:01:41]} 18... Rxd8 {[%clk 0:01:56.6]} 19. gxf3 {[%clk 0:01:41.7]} 1-0

[Event "*** Titled Tuesday Blitz"]
[Site "Chess.com"]
[Date "2018.05.01"]
[Round "4"]
[White "windking123"]
[Black "ChessicallyInclined"]
[Result "0-1"]
[WhiteElo "2287"]
[BlackElo "2196"]
[TimeControl "180+2"]
[EndTime "13:48:54 PDT"]
[Termination "ChessicallyInclined won on time"]

1. d4 {[%clk 0:00:49.5]} 1... Nf6 {[%clk 0:02:59.5]} 2. c4 {[%clk 0:00:50.5]}
2... g6 {[%clk 0:03:00.2]} 3. Nc3 {[%clk 0:00:51.6]} 3... Bg7 {[%clk 0:03:01.5]}
4. e4 {[%clk 0:00:53.3]} 4... d6 {[%clk 0:03:02.7]} 5. Nf3 {[%clk 0:00:54.8]}
5... O-O {[%clk 0:03:04.3]} 6. Be2 {[%clk 0:00:56.4]} 6... e5 {[%clk 0:03:05.7]}
7. O-O {[%clk 0:00:57.8]} 7... exd4 {[%clk 0:03:06.7]} 8. Nxd4 {[%clk
0:00:58.7]} 8... Re8 {[%clk 0:03:08.3]} 9. f3 {[%clk 0:01:00.1]} 9... c6 {[%clk
0:03:09.9]} 10. Be3 {[%clk 0:01:00.6]} 10... d5 {[%clk 0:03:09.5]} 11. cxd5
{[%clk 0:01:01.2]} 11... cxd5 {[%clk 0:03:10.5]} 12. Ndb5 {[%clk 0:01:02.6]}
12... a6 {[%clk 0:03:06]} 13. Na7 {[%clk 0:01:03.9]} 13... Be6 {[%clk 0:02:52]}
14. Na4 {[%clk 0:01:04.9]} 14... Nbd7 {[%clk 0:02:46.7]} 15. Qb3 {[%clk
0:00:59.2]} 15... d4 {[%clk 0:02:45]} 16. Qxb7 {[%clk 0:00:58.8]} 16... dxe3
{[%clk 0:02:41.3]} 17. Rad1 {[%clk 0:00:54.8]} 17... Qa5 {[%clk 0:02:37.7]} 18.
b3 {[%clk 0:00:54.6]} 18... Nc5 {[%clk 0:02:36.3]} 19. Nxc5 {[%clk 0:00:52.3]}
19... Qxc5 {[%clk 0:02:38.2]} 20. Rc1 {[%clk 0:00:51.8]} 20... Qxa7 {[%clk
0:02:38.5]} 0-1

[Event "*** Titled Tuesday Blitz"]
[Site "Chess.com"]
[Date "2018.05.01"]
[Round "4"]
[White "Alexander_Moskalenko"]
[Black "Fins0905"]
[Result "1-0"]
[WhiteElo "2747"]
[BlackElo "2566"]
[TimeControl "180+2"]
[EndTime "13:49:03 PDT"]
[Termination "Alexander_Moskalenko won by resignation"]

1. e4 {[%clk 0:03:01.9]} 1... d5 {[%clk 0:02:59.3]} 2. exd5 {[%clk 0:03:02.5]}
2... Qxd5 {[%clk 0:02:58.9]} 3. Nc3 {[%clk 0:03:04.4]} 3... Qd8 {[%clk
0:02:59.7]} 4. Nf3 {[%clk 0:03:05.9]} 4... Nf6 {[%clk 0:03:00.7]} 5. d4 {[%clk
0:03:07.8]} 5... Bg4 {[%clk 0:03:01.1]} 6. Bc4 {[%clk 0:03:07.7]} 6... e6 {[%clk
0:03:00]} 7. h3 {[%clk 0:03:02.5]} 7... Bh5 {[%clk 0:02:39.6]} 8. g4 {[%clk
0:03:02.8]} 8... Bg6 {[%clk 0:02:40.2]} 9. Ne5 {[%clk 0:03:04.1]} 9... Nbd7
{[%clk 0:02:29.6]} 10. Qf3 {[%clk 0:03:05]} 10... Bb4 {[%clk 0:01:54.7]} 11. O-O
{[%clk 0:02:58.5]} 11... c6 {[%clk 0:01:28.6]} 12. Bb3 {[%clk 0:02:42.7]} 12...
Nxe5 {[%clk 0:01:25.8]} 13. dxe5 {[%clk 0:02:43]} 13... Nd7 {[%clk 0:01:25.9]}
14. Bf4 {[%clk 0:02:44.1]} 14... O-O {[%clk 0:01:21.3]} 15. Rad1 {[%clk
0:02:43.1]} 15... Qc7 {[%clk 0:01:16.8]} 16. Ne4 {[%clk 0:02:41.9]} 16... Nxe5
{[%clk 0:01:07.9]} 17. Qg3 {[%clk 0:02:38.4]} 17... Bxe4 {[%clk 0:01:01.3]} 18.
Bxe5 {[%clk 0:02:39.3]} 18... Qb6 {[%clk 0:00:49.8]} 19. Qf4 {[%clk 0:02:33.8]}
19... Bg6 {[%clk 0:00:43.8]} 20. Bc7 {[%clk 0:02:34.9]} 20... Qb5 {[%clk
0:00:31.5]} 21. a4 {[%clk 0:02:35.8]} 21... Qc5 {[%clk 0:00:29.1]} 22. Bd6
{[%clk 0:02:35.9]} 22... Qb6 {[%clk 0:00:11.9]} 23. Qxb4 {[%clk 0:02:35.7]}
23... Rfd8 {[%clk 0:00:11.2]} 24. Qxb6 {[%clk 0:02:36]} 24... axb6 {[%clk
0:00:12.4]} 25. Bc7 {[%clk 0:02:36.9]} 1-0

[Event "*** Titled Tuesday Blitz"]
[Site "Chess.com"]
[Date "2018.05.01"]
[Round "4"]
[White "plumalka"]
[Black "akretchetov"]
[Result "0-1"]
[WhiteElo "2018"]
[BlackElo "2284"]
[TimeControl "180+2"]
[EndTime "13:49:16 PDT"]
[Termination "akretchetov won by resignation"]

1. e4 {[%clk 0:03:01.9]} 1... e5 {[%clk 0:02:56.9]} 2. Nf3 {[%clk 0:02:59.9]}
2... Nc6 {[%clk 0:02:58]} 3. Bc4 {[%clk 0:02:59.2]} 3... Bc5 {[%clk 0:02:58.6]}
4. c3 {[%clk 0:02:59.2]} 4... Nf6 {[%clk 0:02:59.1]} 5. d3 {[%clk 0:03:00.1]}
5... a6 {[%clk 0:02:59.3]} 6. Bb3 {[%clk 0:03:00.4]} 6... d6 {[%clk 0:02:59.6]}
7. Nbd2 {[%clk 0:03:01.4]} 7... O-O {[%clk 0:02:57.9]} 8. h3 {[%clk 0:03:01.9]}
8... Re8 {[%clk 0:02:58]} 9. Nf1 {[%clk 0:03:02.9]} 9... Be6 {[%clk 0:02:57.8]}
10. Bc2 {[%clk 0:03:03.5]} 10... h6 {[%clk 0:02:54.5]} 11. Ng3 {[%clk
0:03:03.9]} 11... d5 {[%clk 0:02:52.8]} 12. Qe2 {[%clk 0:03:04.4]} 12... d4
{[%clk 0:02:47.7]} 13. Nh2 {[%clk 0:02:55.7]} 13... b5 {[%clk 0:02:41.7]} 14.
Ng4 {[%clk 0:02:52.1]} 14... dxc3 {[%clk 0:02:38.6]} 15. bxc3 {[%clk 0:02:52.6]}
15... b4 {[%clk 0:02:39.7]} 16. Qf3 {[%clk 0:02:23.2]} 16... Nxg4 {[%clk
0:02:24.5]} 17. hxg4 {[%clk 0:02:23.6]} 17... bxc3 {[%clk 0:02:21.5]} 18. Be3
{[%clk 0:02:23.9]} 18... Nb4 {[%clk 0:01:44.5]} 19. Bxc5 {[%clk 0:02:14.2]}
19... Nxc2+ {[%clk 0:01:45.3]} 20. Ke2 {[%clk 0:02:14.9]} 20... Nxa1 {[%clk
0:01:42.3]} 21. Rxa1 {[%clk 0:02:16.8]} 21... Qg5 {[%clk 0:01:34.2]} 22. Nf5
{[%clk 0:02:12.7]} 22... Bxf5 {[%clk 0:01:25.9]} 23. gxf5 {[%clk 0:02:10]} 23...
Qd2+ {[%clk 0:01:26.2]} 24. Kf1 {[%clk 0:02:10.8]} 24... Rad8 {[%clk 0:01:21.3]}
25. Be3 {[%clk 0:02:10.6]} 25... Qxd3+ {[%clk 0:01:21.6]} 26. Kg1 {[%clk
0:02:11.6]} 26... c2 {[%clk 0:01:22.7]} 27. Kh2 {[%clk 0:01:58.7]} 27... Qd1
{[%clk 0:01:19.3]} 28. Qg3 {[%clk 0:01:57.3]} 28... Qh5+ {[%clk 0:01:18.7]} 29.
Qh3 {[%clk 0:01:53.9]} 29... Qxh3+ {[%clk 0:01:18.4]} 30. Kxh3 {[%clk
0:01:52.6]} 30... Rd1 {[%clk 0:01:19.4]} 31. Rc1 {[%clk 0:01:53.5]} 31... Rxc1
{[%clk 0:01:18.5]} 32. Bxc1 {[%clk 0:01:55.4]} 32... Rd8 {[%clk 0:01:19]} 33.
Kg3 {[%clk 0:01:53.5]} 33... Rd1 {[%clk 0:01:19.7]} 0-1

[Event "*** Titled Tuesday Blitz"]
[Site "Chess.com"]
[Date "2018.05.01"]
[Round "4"]
[White "dhanushbharadwaj"]
[Black "juniortay"]
[Result "1-0"]
[WhiteElo "2522"]
[BlackElo "2355"]
[TimeControl "180+2"]
[EndTime "13:49:18 PDT"]
[Termination "dhanushbharadwaj won by resignation"]

1. Nf3 {[%clk 0:03:01.9]} 1... Nf6 {[%clk 0:03:00.5]} 2. c4 {[%clk 0:03:02.7]}
2... g6 {[%clk 0:03:01.6]} 3. b4 {[%clk 0:03:02.4]} 3... Bg7 {[%clk 0:03:02.4]}
4. Bb2 {[%clk 0:03:03.9]} 4... O-O {[%clk 0:03:03.5]} 5. e3 {[%clk 0:03:04.6]}
5... d6 {[%clk 0:03:04.5]} 6. Be2 {[%clk 0:03:05.4]} 6... Nbd7 {[%clk
0:03:05.9]} 7. O-O {[%clk 0:03:05.3]} 7... e5 {[%clk 0:03:04.5]} 8. d3 {[%clk
0:03:06.7]} 8... Nh5 {[%clk 0:03:03.5]} 9. Qc2 {[%clk 0:03:05.6]} 9... f5 {[%clk
0:03:04.2]} 10. Nbd2 {[%clk 0:03:06.2]} 10... Qe8 {[%clk 0:02:50.2]} 11. c5
{[%clk 0:03:05.1]} 11... d5 {[%clk 0:01:53.4]} 12. c6 {[%clk 0:03:04.9]} 12...
Nb6 {[%clk 0:01:44.4]} 13. cxb7 {[%clk 0:03:04.1]} 13... Bxb7 {[%clk 0:01:46.3]}
14. Qxc7 {[%clk 0:03:01.9]} 14... Rf7 {[%clk 0:01:43.6]} 15. Qc2 {[%clk
0:03:01.1]} 15... Rc8 {[%clk 0:01:36.1]} 16. Qb3 {[%clk 0:03:01.1]} 16... Kh8
{[%clk 0:01:34.9]} 17. Rac1 {[%clk 0:02:57.5]} 17... Rfc7 {[%clk 0:01:29]} 18.
Rxc7 {[%clk 0:02:54.6]} 18... Rxc7 {[%clk 0:01:30.9]} 19. Rc1 {[%clk 0:02:55.2]}
19... Rxc1+ {[%clk 0:01:29.9]} 20. Bxc1 {[%clk 0:02:57.1]} 20... e4 {[%clk
0:01:25.9]} 21. Ng5 {[%clk 0:02:54]} 21... f4 {[%clk 0:01:19.1]} 22. Bxh5 {[%clk
0:02:49.4]} 22... fxe3 {[%clk 0:01:20.2]} 23. fxe3 {[%clk 0:02:43.6]} 23... gxh5
{[%clk 0:01:21.2]} 24. Bb2 {[%clk 0:02:42.2]} 24... Qg6 {[%clk 0:01:17.6]} 25.
Bxg7+ {[%clk 0:02:40.2]} 25... Kxg7 {[%clk 0:01:18.4]} 26. Qc3+ {[%clk
0:02:38.2]} 26... Kh6 {[%clk 0:01:16.6]} 27. h4 {[%clk 0:02:35.5]} 27... exd3
{[%clk 0:01:07.5]} 28. Qc7 {[%clk 0:02:35]} 28... Qg7 {[%clk 0:01:01]} 29. Qd6+
{[%clk 0:02:30.1]} 29... Qg6 {[%clk 0:00:58.1]} 30. Qf8+ {[%clk 0:02:30]} 30...
Qg7 {[%clk 0:00:58.3]} 31. Nf7+ {[%clk 0:02:22.4]} 31... Kg6 {[%clk 0:00:58.2]}
32. Nh8+ {[%clk 0:02:22.4]} 32... Kh6 {[%clk 0:00:55.3]} 33. Qf4+ {[%clk
0:02:21.7]} 1-0

[Event "*** Titled Tuesday Blitz"]
[Site "Chess.com"]
[Date "2018.05.01"]
[Round "4"]
[White "schoolmeester"]
[Black "Firouzja2003"]
[Result "0-1"]
[WhiteElo "2702"]
[BlackElo "2865"]
[TimeControl "180+2"]
[EndTime "13:49:19 PDT"]
[Termination "Firouzja2003 won by resignation"]

1. e4 {[%clk 0:03:01.9]} 1... c5 {[%clk 0:02:58.9]} 2. Nf3 {[%clk 0:03:00]} 2...
Nc6 {[%clk 0:03:00.3]} 3. d4 {[%clk 0:02:59.6]} 3... cxd4 {[%clk 0:03:01.2]} 4.
Nxd4 {[%clk 0:03:00.5]} 4... Nf6 {[%clk 0:03:02.5]} 5. Nc3 {[%clk 0:03:00.6]}
5... d6 {[%clk 0:03:04.1]} 6. Bc4 {[%clk 0:02:53.4]} 6... e6 {[%clk 0:03:04.4]}
7. Be3 {[%clk 0:02:52.4]} 7... a6 {[%clk 0:03:05.2]} 8. Qe2 {[%clk 0:02:48.1]}
8... Bd7 {[%clk 0:03:05.1]} 9. O-O {[%clk 0:02:38.7]} 9... b5 {[%clk 0:02:52.5]}
10. Bb3 {[%clk 0:02:28.6]} 10... Nxd4 {[%clk 0:02:32.2]} 11. Bxd4 {[%clk
0:02:28.9]} 11... b4 {[%clk 0:02:32.8]} 12. Nd1 {[%clk 0:01:35.2]} 12... e5
{[%clk 0:02:27.9]} 13. Be3 {[%clk 0:01:35.1]} 13... Be7 {[%clk 0:02:21.7]} 14.
f4 {[%clk 0:01:25.7]} 14... O-O {[%clk 0:02:15.5]} 15. Nf2 {[%clk 0:01:25.8]}
15... Bb5 {[%clk 0:02:07.1]} 16. Bc4 {[%clk 0:01:25.9]} 16... Bxc4 {[%clk
0:02:08.3]} 17. Qxc4 {[%clk 0:01:26.1]} 17... exf4 {[%clk 0:02:10.2]} 18. Bxf4
{[%clk 0:01:26.8]} 18... d5 {[%clk 0:02:11.8]} 19. exd5 {[%clk 0:01:23.2]} 19...
Qxd5 {[%clk 0:02:13.7]} 20. Qc7 {[%clk 0:00:41.1]} 20... Bc5 {[%clk 0:02:11.1]}
21. Rae1 {[%clk 0:00:21.5]} 21... Ng4 {[%clk 0:02:04.1]} 0-1

[Event "*** Titled Tuesday Blitz"]
[Site "Chess.com"]
[Date "2018.05.01"]
[Round "4"]
[White "Justmig"]
[Black "amiralfio"]
[Result "0-1"]
[WhiteElo "2494"]
[BlackElo "2360"]
[TimeControl "180+2"]
[EndTime "13:49:59 PDT"]
[Termination "amiralfio won on time"]

1. d4 {[%clk 0:03:01.4]} 1... Nf6 {[%clk 0:03:00.5]} 2. Bg5 {[%clk 0:03:02.5]}
2... Ne4 {[%clk 0:03:01.2]} 3. Bf4 {[%clk 0:03:03.8]} 3... c5 {[%clk 0:03:02.3]}
4. f3 {[%clk 0:03:05]} 4... Qa5+ {[%clk 0:03:02.4]} 5. c3 {[%clk 0:03:06.3]}
5... Nf6 {[%clk 0:03:03.1]} 6. d5 {[%clk 0:03:07.8]} 6... e6 {[%clk 0:02:52.1]}
7. e4 {[%clk 0:03:08.9]} 7... Be7 {[%clk 0:02:48.3]} 8. Nd2 {[%clk 0:03:07.5]}
8... exd5 {[%clk 0:02:43.5]} 9. exd5 {[%clk 0:03:09.4]} 9... Nxd5 {[%clk
0:02:44.6]} 10. Nc4 {[%clk 0:03:10.5]} 10... Nxc3 {[%clk 0:02:37.4]} 11. Nxa5
{[%clk 0:03:09.6]} 11... Nxd1 {[%clk 0:02:38.2]} 12. Rxd1 {[%clk 0:03:11.3]}
12... b6 {[%clk 0:02:36.6]} 13. Nc4 {[%clk 0:03:09.2]} 13... Bb7 {[%clk
0:02:31.7]} 14. Nd6+ {[%clk 0:03:09.9]} 14... Bxd6 {[%clk 0:02:31.1]} 15. Bxd6
{[%clk 0:03:11.8]} 15... Nc6 {[%clk 0:02:31.5]} 16. Bc4 {[%clk 0:03:13.3]} 16...
f6 {[%clk 0:02:30.6]} 17. Ne2 {[%clk 0:03:12.9]} 17... O-O-O {[%clk 0:02:30.4]}
18. Kf2 {[%clk 0:03:14.3]} 18... Na5 {[%clk 0:02:29.8]} 19. Bf7 {[%clk
0:03:13.3]} 19... Bc6 {[%clk 0:02:24.3]} 20. Be7 {[%clk 0:03:05.5]} 20... d5
{[%clk 0:02:23.2]} 21. Bxd8 {[%clk 0:03:04.8]} 21... Rxd8 {[%clk 0:02:25.1]} 22.
b4 {[%clk 0:02:54.5]} 22... Nc4 {[%clk 0:02:19.1]} 23. bxc5 {[%clk 0:02:48.8]}
23... bxc5 {[%clk 0:02:11.2]} 24. Nc3 {[%clk 0:02:49.2]} 24... Nb6 {[%clk
0:02:08.8]} 25. Rc1 {[%clk 0:02:48.9]} 25... c4 {[%clk 0:01:54.7]} 0-1

[Event "*** Titled Tuesday Blitz"]
[Site "Chess.com"]
[Date "2018.05.01"]
[Round "4"]
[White "tigra"]
[Black "Sanan_Sjugirov"]
[Result "1-0"]
[WhiteElo "2737"]
[BlackElo "2789"]
[TimeControl "180+2"]
[EndTime "13:50:13 PDT"]
[Termination "tigra won by resignation"]

1. e4 {[%clk 0:03:01.9]} 1... c5 {[%clk 0:02:59.9]} 2. Nf3 {[%clk 0:03:03.2]}
2... d6 {[%clk 0:02:58.2]} 3. d4 {[%clk 0:03:04.7]} 3... cxd4 {[%clk 0:02:59.3]}
4. Nxd4 {[%clk 0:03:06.6]} 4... Nf6 {[%clk 0:03:00.5]} 5. Nc3 {[%clk 0:03:08.1]}
5... a6 {[%clk 0:03:01.9]} 6. Bg5 {[%clk 0:03:09.6]} 6... e6 {[%clk 0:03:00.5]}
7. h4 {[%clk 0:03:10.2]} 7... h6 {[%clk 0:02:55.6]} 8. Be3 {[%clk 0:03:10.6]}
8... Nbd7 {[%clk 0:02:48.7]} 9. g4 {[%clk 0:03:10.8]} 9... Ne5 {[%clk
0:02:45.4]} 10. Rg1 {[%clk 0:03:09.1]} 10... h5 {[%clk 0:02:26]} 11. g5 {[%clk
0:02:58.1]} 11... Nfg4 {[%clk 0:02:25]} 12. Bc1 {[%clk 0:02:56.2]} 12... b5
{[%clk 0:02:14.7]} 13. f3 {[%clk 0:02:49.6]} 13... b4 {[%clk 0:01:48.3]} 14. Na4
{[%clk 0:02:48.8]} 14... Bd7 {[%clk 0:01:44.4]} 15. b3 {[%clk 0:02:48]} 15...
Bxa4 {[%clk 0:01:45]} 16. bxa4 {[%clk 0:02:47.7]} 16... d5 {[%clk 0:01:31.8]}
17. fxg4 {[%clk 0:02:45.2]} 17... dxe4 {[%clk 0:01:28.1]} 18. Be2 {[%clk
0:02:27.2]} 18... hxg4 {[%clk 0:01:26.8]} 19. Bf4 {[%clk 0:02:16.8]} 19... Nf3+
{[%clk 0:01:23.6]} 20. Nxf3 {[%clk 0:02:17.6]} 20... gxf3 {[%clk 0:01:22.7]} 21.
Qxd8+ {[%clk 0:02:17.7]} 21... Kxd8 {[%clk 0:01:23.3]} 22. O-O-O+ {[%clk
0:02:17.8]} 22... Ke8 {[%clk 0:01:20.1]} 23. Bc4 {[%clk 0:02:13.1]} 23... Rxh4
{[%clk 0:01:18.2]} 24. Be3 {[%clk 0:02:13.7]} 24... g6 {[%clk 0:01:10.9]} 25.
Rh1 {[%clk 0:02:03.7]} 25... Rxh1 {[%clk 0:01:10.7]} 26. Rxh1 {[%clk 0:02:05.6]}
26... Bg7 {[%clk 0:01:11.1]} 27. Rh4 {[%clk 0:02:00.1]} 27... Kd7 {[%clk
0:00:51.6]} 28. Rxe4 {[%clk 0:01:57.7]} 28... Rh8 {[%clk 0:00:49.1]} 29. Rf4
{[%clk 0:01:55.2]} 29... Rh1+ {[%clk 0:00:43.7]} 30. Kd2 {[%clk 0:01:53.5]}
30... Bc3+ {[%clk 0:00:44.2]} 31. Kd3 {[%clk 0:01:54.6]} 31... a5 {[%clk
0:00:24.6]} 32. Rxf7+ {[%clk 0:01:51.6]} 1-0

[Event "*** Titled Tuesday Blitz"]
[Site "Chess.com"]
[Date "2018.05.01"]
[Round "4"]
[White "chidori_boruto"]
[Black "guillembaches"]
[Result "1-0"]
[WhiteElo "2530"]
[BlackElo "2241"]
[TimeControl "180+2"]
[EndTime "13:50:19 PDT"]
[Termination "chidori_boruto won by resignation"]

1. d4 {[%clk 0:03:01.9]} 1... Nf6 {[%clk 0:02:59.1]} 2. Bf4 {[%clk 0:02:57.8]}
2... e6 {[%clk 0:02:59.2]} 3. e3 {[%clk 0:02:56.2]} 3... d5 {[%clk 0:03:00.3]}
4. Nf3 {[%clk 0:02:53]} 4... Bd6 {[%clk 0:03:00.9]} 5. Bg3 {[%clk 0:02:53.1]}
5... O-O {[%clk 0:03:01]} 6. Nbd2 {[%clk 0:02:53.1]} 6... c5 {[%clk 0:03:02]} 7.
c3 {[%clk 0:02:54.4]} 7... Nc6 {[%clk 0:03:02.9]} 8. Bb5 {[%clk 0:02:55.5]} 8...
a6 {[%clk 0:02:59]} 9. Bxc6 {[%clk 0:02:55]} 9... bxc6 {[%clk 0:03:00]} 10. Qa4
{[%clk 0:02:55.9]} 10... Qc7 {[%clk 0:02:49.2]} 11. Bxd6 {[%clk 0:02:46.5]}
11... Qxd6 {[%clk 0:02:49.7]} 12. Qa3 {[%clk 0:02:47.6]} 12... Rb8 {[%clk
0:02:42.7]} 13. Nb3 {[%clk 0:02:45.4]} 13... Nd7 {[%clk 0:02:43.5]} 14. O-O
{[%clk 0:02:42.2]} 14... e5 {[%clk 0:02:37.7]} 15. dxe5 {[%clk 0:02:32.1]} 15...
Nxe5 {[%clk 0:02:36]} 16. Nxe5 {[%clk 0:02:32.8]} 16... Qxe5 {[%clk 0:02:37]}
17. Qxc5 {[%clk 0:02:33.7]} 17... Re8 {[%clk 0:02:21.9]} 18. Rad1 {[%clk
0:02:30.1]} 18... Re6 {[%clk 0:02:13.1]} 19. Qd4 {[%clk 0:02:30.6]} 19... Qh5
{[%clk 0:02:11.1]} 20. Qf4 {[%clk 0:02:31.3]} 20... Ra8 {[%clk 0:02:06.4]} 21.
Qc7 {[%clk 0:02:13.2]} 21... h6 {[%clk 0:01:52.1]} 22. Rd2 {[%clk 0:02:03.4]}
22... Rg6 {[%clk 0:01:49.4]} 23. f3 {[%clk 0:02:01.6]} 23... Kh7 {[%clk
0:01:26.2]} 24. Nd4 {[%clk 0:02:00.4]} 24... Bh3 {[%clk 0:01:18.7]} 25. Kh1
{[%clk 0:01:59.5]} 25... Re8 {[%clk 0:00:58.4]} 26. gxh3 {[%clk 0:01:49.3]}
26... Rxe3 {[%clk 0:00:57.3]} 27. Rg2 {[%clk 0:01:39.7]} 27... Qxh3 {[%clk
0:00:52.4]} 28. Rxg6 {[%clk 0:01:24.1]} 28... Qxf1+ {[%clk 0:00:38.8]} 29. Rg1
{[%clk 0:01:23.7]} 29... Qf2 {[%clk 0:00:35.1]} 30. Qxf7 {[%clk 0:01:21]} 1-0

[Event "*** Titled Tuesday Blitz"]
[Site "Chess.com"]
[Date "2018.05.01"]
[Round "4"]
[White "MasterLeif"]
[Black "FearNoEvil12"]
[Result "0-1"]
[WhiteElo "2400"]
[BlackElo "1971"]
[TimeControl "180+2"]
[EndTime "13:50:44 PDT"]
[Termination "FearNoEvil12 won on time"]

1. e4 {[%clk 0:03:00.5]} 1... a6 {[%clk 0:02:59.9]} 2. Bc4 {[%clk 0:03:00.4]}
2... e6 {[%clk 0:02:59]} 3. Nc3 {[%clk 0:03:00.3]} 3... b5 {[%clk 0:03:00.1]} 4.
Bb3 {[%clk 0:02:57.4]} 4... Bb7 {[%clk 0:03:01.4]} 5. d3 {[%clk 0:02:57.1]} 5...
Nf6 {[%clk 0:03:00.6]} 6. Nf3 {[%clk 0:02:56.4]} 6... d6 {[%clk 0:03:00.9]} 7.
O-O {[%clk 0:02:56.7]} 7... Nbd7 {[%clk 0:03:02.2]} 8. a4 {[%clk 0:02:55.6]}
8... b4 {[%clk 0:03:01.4]} 9. Nb1 {[%clk 0:02:45.9]} 9... h6 {[%clk 0:03:02]}
10. Nbd2 {[%clk 0:02:43.2]} 10... g5 {[%clk 0:03:02.4]} 11. a5 {[%clk
0:02:39.3]} 11... g4 {[%clk 0:03:01.8]} 12. Nh4 {[%clk 0:02:24.6]} 12... h5
{[%clk 0:03:01.3]} 13. Re1 {[%clk 0:02:15]} 13... Nh7 {[%clk 0:03:01]} 14. g3
{[%clk 0:01:55.1]} 14... Be7 {[%clk 0:03:01.9]} 15. Ng2 {[%clk 0:01:28.8]} 15...
Ng5 {[%clk 0:03:03.1]} 16. Qe2 {[%clk 0:01:24.5]} 16... Ne5 {[%clk 0:03:02.6]}
17. Rd1 {[%clk 0:01:14.3]} 17... Ngf3+ {[%clk 0:03:02]} 18. Kh1 {[%clk
0:01:08.7]} 18... h4 {[%clk 0:03:01.5]} 19. Nf1 {[%clk 0:00:37.2]} 19... hxg3
{[%clk 0:02:43.8]} 20. fxg3 {[%clk 0:00:37.5]} 20... Nxh2 {[%clk 0:02:24.5]} 21.
Nxh2 {[%clk 0:00:27]} 21... Nf3 {[%clk 0:02:23.3]} 22. Nf4 {[%clk 0:00:17.6]}
22... Kd7 {[%clk 0:02:14.8]} 23. Be3 {[%clk 0:00:15.2]} 23... Rxh2+ {[%clk
0:02:14]} 24. Qxh2 {[%clk 0:00:16.3]} 24... Nxh2 {[%clk 0:02:14.9]} 25. Kxh2
{[%clk 0:00:18.2]} 25... e5 {[%clk 0:02:09.5]} 26. Nd5 {[%clk 0:00:05.9]} 26...
Qh8+ {[%clk 0:02:10.5]} 27. Kg1 {[%clk 0:00:06.5]} 27... Qh3 {[%clk 0:02:08.7]}
28. Kf2 {[%clk 0:00:04.2]} 28... Qh2+ {[%clk 0:02:07.5]} 29. Ke1 {[%clk
0:00:05.4]} 29... Rh8 {[%clk 0:01:55.5]} 30. Bf2 {[%clk 0:00:05.2]} 30... Qg2
{[%clk 0:01:52.9]} 31. Ke2 {[%clk 0:00:04.1]} 31... Qf3+ {[%clk 0:01:52]} 32.
Ke1 {[%clk 0:00:03]} 32... Rh1+ {[%clk 0:01:50.5]} 33. Bg1 {[%clk 0:00:03.6]}
33... Bxd5 {[%clk 0:01:45.1]} 34. Bxd5 {[%clk 0:00:03.1]} 34... Qe3+ {[%clk
0:01:44.5]} 0-1

[Event "*** Titled Tuesday Blitz"]
[Site "Chess.com"]
[Date "2018.05.01"]
[Round "4"]
[White "ruvat"]
[Black "Pudor"]
[Result "0-1"]
[WhiteElo "2233"]
[BlackElo "2230"]
[TimeControl "180+2"]
[EndTime "13:50:45 PDT"]
[Termination "Pudor won by resignation"]

1. d4 {[%clk 0:03:01.9]} 1... Nf6 {[%clk 0:02:56.5]} 2. c4 {[%clk 0:03:02.5]}
2... d6 {[%clk 0:02:55.7]} 3. Nf3 {[%clk 0:03:02.9]} 3... g6 {[%clk 0:02:55.7]}
4. g3 {[%clk 0:03:03.8]} 4... Bg7 {[%clk 0:02:50.6]} 5. Bg2 {[%clk 0:03:04.8]}
5... O-O {[%clk 0:02:51.3]} 6. O-O {[%clk 0:03:04.9]} 6... Nbd7 {[%clk
0:02:50.6]} 7. Nc3 {[%clk 0:03:05.6]} 7... e5 {[%clk 0:02:51.2]} 8. e4 {[%clk
0:03:05.4]} 8... exd4 {[%clk 0:02:51.8]} 9. Nxd4 {[%clk 0:03:07.3]} 9... Re8
{[%clk 0:02:53.4]} 10. h3 {[%clk 0:03:07.2]} 10... Nc5 {[%clk 0:02:54.2]} 11.
Re1 {[%clk 0:03:07.9]} 11... a5 {[%clk 0:02:55.1]} 12. Ndb5 {[%clk 0:03:08.6]}
12... Bd7 {[%clk 0:02:51.7]} 13. Bf4 {[%clk 0:03:05.8]} 13... Bc6 {[%clk
0:02:50.3]} 14. Qc2 {[%clk 0:03:04.8]} 14... Qe7 {[%clk 0:02:39]} 15. f3 {[%clk
0:02:33.9]} 15... Nh5 {[%clk 0:02:36.8]} 16. Qd2 {[%clk 0:02:09.4]} 16... Nxf4
{[%clk 0:02:34.9]} 17. gxf4 {[%clk 0:01:59.4]} 17... Bh6 {[%clk 0:02:31.6]} 18.
Nd4 {[%clk 0:01:45.2]} 18... Qh4 {[%clk 0:02:27.7]} 19. Nce2 {[%clk 0:01:42]}
19... Ne6 {[%clk 0:02:19.8]} 20. Nxe6 {[%clk 0:01:32.2]} 20... fxe6 {[%clk
0:02:21.7]} 21. Qe3 {[%clk 0:01:18.6]} 21... e5 {[%clk 0:02:15.8]} 22. Qf2
{[%clk 0:01:18.5]} 22... Qxf2+ {[%clk 0:02:16.7]} 23. Kxf2 {[%clk 0:01:18.7]}
23... exf4 {[%clk 0:02:18.6]} 24. Nd4 {[%clk 0:01:12.7]} 24... Bd7 {[%clk
0:02:18.9]} 25. Rad1 {[%clk 0:01:07.4]} 25... Bg7 {[%clk 0:02:18.7]} 26. b3
{[%clk 0:01:06.1]} 26... a4 {[%clk 0:02:17.5]} 27. b4 {[%clk 0:01:04.8]} 27...
a3 {[%clk 0:02:15.5]} 28. Nb5 {[%clk 0:01:02.9]} 28... Bxb5 {[%clk 0:02:00.4]}
29. cxb5 {[%clk 0:01:04.8]} 29... Bc3 {[%clk 0:02:01.1]} 30. Rb1 {[%clk
0:00:48]} 30... Bxe1+ {[%clk 0:02:01.5]} 31. Kxe1 {[%clk 0:00:46.1]} 31... Re5
{[%clk 0:01:53.8]} 32. Bf1 {[%clk 0:00:45]} 32... Kg7 {[%clk 0:01:45.3]} 33. Kf2
{[%clk 0:00:44.4]} 33... d5 {[%clk 0:01:39]} 34. Rc1 {[%clk 0:00:40.4]} 34...
Rc8 {[%clk 0:01:29.3]} 35. Rc5 {[%clk 0:00:39.7]} 35... b6 {[%clk 0:01:27.5]}
36. Rxd5 {[%clk 0:00:37.8]} 36... Rxd5 {[%clk 0:01:28.4]} 37. exd5 {[%clk
0:00:38.9]} 37... Kf6 {[%clk 0:01:29.1]} 0-1